fUSD/lending_fUSD_20251023
["ID","MTS","AMOUNT","RATE_DAILY","PERIOD"]
[392169194,1761228647765,-500.0,0.00044998,120]
[392169195,1761228647775,-686.19,0.00044998,120]
[392169196,1761228647784,-500.0,0.00044998,120]
[392169197,1761228647794,-500.0,0.00044998,120]
[392169198,1761228647804,-500.0,0.00044998,120]
[392169199,1761228647816,-500.0,0.00044998,120]
[392169200,1761228647826,-221.39151546,0.00044998,120]
[392169201,1761228647836,-1044.43,0.00044998,120]
[392169202,1761228647846,-500.0,0.00044998,120]
[392169203,1761228647856,-1932.46,0.00044998,120]
[392169204,1761228647866,-414.0,0.00044998,120]
[392169205,1761228647876,-500.0,0.00044998,120]
[392169206,1761228647886,-429.318,0.00044998,120]
[392169207,1761228647896,-445.202766,0.00044998,120]
[392169208,1761228647906,-461.67526834,0.00044998,120]
[392169209,1761228647915,-478.75725327,0.00044998,120]
[392169210,1761228647925,-496.47127164,0.00044998,120]
[392169211,1761228647934,-514.84070869,0.00044998,120]
[392169212,1761228647944,-533.88981491,0.00044998,120]
[392169213,1761228647954,-553.64373807,0.00044998,120]
[392169214,1761228647963,-574.12855637,0.00044998,120]
[392169215,1761228647973,-595.37131296,0.00044998,120]
[392169216,1761228647983,-617.40005154,0.00044998,120]
[392169217,1761228647992,-640.24385345,0.00044998,120]
[392169218,1761228648001,-663.93287602,0.00044998,120]
[392169219,1761228648011,-688.49839244,0.00044998,120]
[392169220,1761228648021,-713.97283296,0.00044998,120]
[392169221,1761228648030,-740.38982778,0.00044998,120]
[392169222,1761228648040,-767.7842514,0.00044998,120]
[392169223,1761228648051,-796.19226871,0.00044998,120]
[392169224,1761228648062,-825.65138265,0.00044998,120]
[392169225,1761228648072,-1177.65810365,0.00044999,60]
[392169226,1761228648082,-200.0,0.00044999,7]
[392169227,1761228648092,-200.0,0.00044999,7]
[392169228,1761228648103,-259.05234731,0.00044999,120]
[392169229,1761228648112,-500.0,0.00044999,120]
[392169230,1761228648122,-500.0,0.00044999,120]
[392169231,1761228648131,-500.0,0.00044999,120]
[392169232,1761228648141,-500.0,0.00044999,120]
[392169233,1761228648150,-500.0,0.00044999,120]
[392169234,1761228648160,-500.0,0.00044999,120]
[392169235,1761228648170,-500.0,0.00044999,120]
[392169236,1761228648180,-500.0,0.00044999,120]
[392169237,1761228648190,-628.93292709,0.00044999,120]
[392169238,1761228648199,-175.05,0.00044999,60]
[392169239,1761228648209,-500.0,0.00044999,120]
[392169240,1761228648223,-500.0,0.00044999,120]
[392169241,1761228648233,-500.0,0.00044999,120]
[392169242,1761228648242,-500.0,0.00044999,120]
[392169243,1761228648252,-500.0,0.00044999,120]
[392169244,1761228648262,-500.0,0.00044999,120]
[392169245,1761228648272,-500.0,0.00044999,120]
[392169246,1761228648281,-500.0,0.00044999,120]
[392169247,1761228648291,-500.0,0.00044999,120]
[392169248,1761228648300,-500.0,0.00044999,120]
[392169249,1761228648312,-500.0,0.00044999,120]
[392169250,1761228648321,-419.70456636,0.00044999,120]
[392169251,1761228648330,-500.0,0.00044999,120]
[392169252,1761228648340,-500.0,0.00044999,120]
[392169253,1761228648349,-500.0,0.00044999,120]
[392169254,1761228648359,-500.0,0.00044999,120]
[392169255,1761228648369,-500.0,0.00044999,120]
[392169256,1761228648379,-500.0,0.00044999,120]
[392169257,1761228648388,-500.0,0.00044999,120]
[392169258,1761228648397,-500.0,0.00044999,120]
[392169259,1761228648407,-500.0,0.00044999,120]
[392169260,1761228648416,-500.0,0.00044999,120]
[392169261,1761228648425,-500.0,0.00044999,120]
[392169262,1761228648434,-500.0,0.00044999,120]
[392169263,1761228648443,-500.0,0.00044999,120]
[392169264,1761228648452,-500.0,0.00044999,120]
[392169265,1761228648462,-500.0,0.00044999,120]
[392169266,1761228648472,-500.0,0.00044999,120]
[392169267,1761228648482,-649.75989348,0.00044999,120]
[392169268,1761228648491,-500.0,0.00044999,120]
[392169269,1761228648501,-500.0,0.00044999,120]
[392169270,1761228648510,-483.50015273,0.00044999,120]
[392169271,1761228648519,-999.0,0.00044999,120]
[392169272,1761228648529,-1610.29,0.00044999,120]
[392169273,1761228648538,-1610.29,0.00044999,120]
[392169274,1761228648548,-1610.29,0.00044999,120]
[392169275,1761228648559,-1610.29,0.00044999,120]
[392169276,1761228648569,-1610.29,0.00044999,120]
[392169277,1761228648579,-1610.29,0.00044999,120]
[392169278,1761228648588,-1610.29,0.00044999,120]
[392169279,1761228648598,-1610.29,0.00044999,120]
[392169280,1761228648607,-1610.29,0.00044999,120]
[392169281,1761228648617,-1610.29,0.00044999,120]
[392169282,1761228648627,-1610.29,0.00044999,120]
[392169283,1761228648636,-1610.29,0.00044999,120]
[392169284,1761228648646,-1610.29,0.00044999,120]
[392169285,1761228648656,-1610.29,0.00044999,120]
[392169286,1761228648666,-928.66,0.00044999,120]
[392169287,1761228648675,-928.66,0.00044999,120]
[392169288,1761228648685,-928.66,0.00044999,120]
[392169289,1761228648695,-928.66,0.00044999,120]
[392169290,1761228648704,-928.66,0.00044999,120]
[392169291,1761228648713,-928.66,0.00044999,120]
[392169292,1761228648723,-928.66,0.00044999,120]
[392169293,1761228648732,-928.66,0.00044999,120]
[392169294,1761228648741,-928.66,0.00044999,120]
[392169295,1761228648751,-928.66,0.00044999,120]
[392169296,1761228648761,-928.66,0.00044999,120]
[392169297,1761228648771,-928.66,0.00044999,120]
[392169298,1761228648780,-928.66,0.00044999,120]
[392169299,1761228648789,-928.66,0.00044999,120]
[392169300,1761228648799,-500.0,0.00044999,120]
[392169301,1761228648810,-500.0,0.00044999,120]
[392169302,1761228648820,-500.0,0.00044999,120]
[392169303,1761228648829,-500.0,0.00044999,120]
[392169304,1761228648839,-500.0,0.00044999,120]
[392169305,1761228648848,-500.0,0.00044999,120]
[392169306,1761228648858,-500.0,0.00044999,120]
[392169307,1761228648867,-500.0,0.00044999,120]
[392169308,1761228648877,-647.35902238,0.00044999,120]
[392169309,1761228648887,-1049.9,0.00044999,30]
[392169310,1761228648896,-1049.9,0.00044999,30]
[392169311,1761228648905,-1049.9,0.00044999,30]
[392169312,1761228648915,-1049.9,0.00044999,30]
[392169313,1761228648924,-1049.9,0.00044999,30]
[392169314,1761228648933,-1049.9,0.00044999,30]
[392169315,1761228648943,-1049.9,0.00044999,30]
[392169316,1761228648952,-1049.9,0.00044999,30]
[392169317,1761228648961,-1049.9,0.00044999,30]
[392169318,1761228648971,-1049.9,0.00044999,30]
[392169319,1761228648980,-1049.9,0.00044999,30]
[392169320,1761228648989,-1049.9,0.00044999,30]
[392169321,1761228648998,-1049.9,0.00044999,30]
[392169322,1761228649008,-1049.9,0.00044999,30]
[392169323,1761228649018,-500.0,0.00044999,120]
[392169324,1761228649027,-500.0,0.00044999,120]
[392169325,1761228649036,-219.68871282,0.00044999,120]
[392169326,1761228649046,-500.0,0.00044999,120]
[392169327,1761228649055,-500.0,0.00044999,120]
[392169328,1761228649066,-500.0,0.00044999,120]
[392169329,1761228649075,-500.0,0.00044999,120]
[392169330,1761228649084,-500.0,0.00044999,120]
[392169331,1761228649093,-500.0,0.00044999,120]
[392169332,1761228649103,-500.0,0.00044999,120]
[392169333,1761228649112,-500.0,0.00044999,120]
[392169334,1761228649121,-500.0,0.00044999,120]
[392169335,1761228649130,-500.0,0.00044999,120]
[392169336,1761228649140,-500.0,0.00044999,120]
[392169337,1761228649150,-500.0,0.00044999,120]
[392169338,1761228649159,-500.0,0.00044999,120]
[392169339,1761228649169,-242.231018,0.00044999,30]
[392169340,1761228649180,-500.0,0.00044999,120]
[392169341,1761228649189,-242.231018,0.00044999,30]
[392169342,1761228649198,-500.0,0.00044999,120]
[392169343,1761228649208,-500.0,0.00044999,120]
[392169344,1761228649221,-500.0,0.00044999,120]
[392169345,1761228649230,-500.0,0.00044999,120]
[392169346,1761228649240,-500.0,0.00044999,120]
[392169347,1761228649249,-500.0,0.00044999,120]
[392169348,1761228649262,-500.0,0.00044999,120]
[392169349,1761228649271,-187.0818311,0.00044999,120]
[392169350,1761228649281,-242.231018,0.00044999,30]
[392169351,1761228649291,-242.231018,0.00044999,30]
[392169352,1761228649301,-686.19,0.00044999,120]
[392169353,1761228649312,-686.19,0.00044999,120]
[392169354,1761228649321,-686.19,0.00044999,120]
[392169355,1761228649331,-686.19,0.00044999,120]
[392169356,1761228649340,-686.19,0.00044999,120]
[392169357,1761228649349,-686.19,0.00044999,120]
[392169358,1761228649359,-686.19,0.00044999,120]
[392169359,1761228649368,-686.19,0.00044999,120]
[392169360,1761228649377,-686.19,0.00044999,120]
[392169361,1761228649387,-686.19,0.00044999,120]
[392169362,1761228649396,-686.19,0.00044999,120]
[392169363,1761228649405,-686.19,0.00044999,120]
[392169364,1761228649415,-686.19,0.00044999,120]
[392169365,1761228649424,-686.19,0.00044999,120]
[392169366,1761228649433,-648.82,0.00044999,120]
[392169367,1761228649443,-500.0,0.00044999,120]
[392169368,1761228649452,-500.0,0.00044999,120]
[392169369,1761228649461,-500.0,0.00044999,120]
[392169370,1761228649471,-500.0,0.00044999,120]
[392169371,1761228649480,-500.0,0.00044999,120]
[392169372,1761228649489,-500.0,0.00044999,120]
[392169373,1761228649499,-500.0,0.00044999,120]
[392169374,1761228649508,-500.0,0.00044999,120]
[392169375,1761228649518,-500.0,0.00044999,120]
[392169376,1761228649528,-500.0,0.00044999,120]
[392169377,1761228649538,-500.0,0.00044999,120]
[392169378,1761228649547,-500.0,0.00044999,120]
[392169379,1761228649558,-500.0,0.00044999,120]
[392169380,1761228649583,-500.0,0.00044999,120]
[392169381,1761228649592,-500.0,0.00044999,120]
[392169382,1761228649601,-500.0,0.00044999,120]
[392169383,1761228649611,-500.0,0.00044999,120]
[392169384,1761228649620,-420.88255004,0.00044999,120]
[392169385,1761228649631,-500.0,0.00044999,120]
[392169386,1761228649640,-500.0,0.00044999,120]
[392169387,1761228649650,-500.0,0.00044999,120]
[392169388,1761228649659,-500.0,0.00044999,120]
[392169389,1761228649669,-500.0,0.00044999,120]
[392169390,1761228649678,-615.92859904,0.00044999,120]
[392169391,1761228649688,-1044.43,0.00044999,120]
[392169392,1761228649697,-1044.43,0.00044999,120]
[392169393,1761228649707,-1044.43,0.00044999,120]
[392169394,1761228649717,-1044.43,0.00044999,120]
[392169395,1761228649726,-1044.43,0.00044999,120]
[392169396,1761228649735,-1044.43,0.00044999,120]
[392169397,1761228649745,-1044.43,0.00044999,120]
[392169398,1761228649754,-1044.43,0.00044999,120]
[392169399,1761228649764,-1044.43,0.00044999,120]
[392169400,1761228649773,-1044.43,0.00044999,120]
[392169401,1761228649783,-1044.43,0.00044999,120]
[392169402,1761228649792,-1044.43,0.00044999,120]
[392169403,1761228649802,-1044.43,0.00044999,120]
[392169404,1761228649813,-1044.43,0.00044999,120]
[392169405,1761228649823,-561.96,0.00044999,120]
[392169406,1761228649832,-1932.46,0.00044999,120]
[392169407,1761228649841,-1932.46,0.00044999,120]
[392169408,1761228649851,-1932.46,0.00044999,120]
[392169409,1761228649861,-1932.46,0.00044999,120]
[392169410,1761228649871,-1932.46,0.00044999,120]
[392169411,1761228649880,-1932.46,0.00044999,120]
[392169412,1761228649890,-1932.46,0.00044999,120]
[392169413,1761228649900,-1932.46,0.00044999,120]
[392169414,1761228649910,-1932.46,0.00044999,120]
[392169415,1761228649920,-1932.46,0.00044999,120]
[392169416,1761228649929,-1932.46,0.00044999,120]
[392169417,1761228649939,-1932.46,0.00044999,120]
[392169418,1761228649949,-1932.46,0.00044999,120]
[392169419,1761228649959,-1932.46,0.00044999,120]
[392169420,1761228649968,-441.77409823,0.00044999,120]
[392169421,1761228649977,-5405.74139031,0.00045,19]
[392169423,1761228665892,195.0,0.00026828,120]
[392169425,1761228672504,-195.57,0.0002555,2]
[392169426,1761228672527,-54.42999984,0.00028105,120]
[392169442,1761228808436,-307.55077065,0.00024932,2]
[392169447,1761228859589,-192.44922935,0.00024932,2]
[392169458,1761228986806,302.1341574,0.00025,2]
[392169471,1761229193980,443.7,0.00021342,2]
[392169472,1761229194206,443.7,0.00022465,2]
[392169473,1761229194445,443.7,0.00023588,2]
[392169474,1761229194695,443.7,0.00024712,2]
[392169475,1761229198545,-443.7,0.00025835,2]
[392169476,1761229198567,-15.14,0.00026958,2]
[392169480,1761229471451,-428.56,0.00026958,2]
[392169481,1761229471477,-173.44630686,0.00027506,2]
[392169482,1761229471512,-443.7,0.00028081,2]
[392169483,1761229471540,-191.37864445,0.00028099,2]
[392169484,1761229471566,-1200.0,0.00028199,2]
[392169485,1761229471590,-300.0,0.00028199,2]
[392169486,1761229471617,-300.0,0.00028199,2]
[392169487,1761229471639,-500.0,0.000282,5]
[392169488,1761229471662,-957.57998478,0.00028748,5]
[392169489,1761229471694,-443.7,0.00029205,2]
[392169490,1761229471717,-150.0,0.00029587,2]
[392169491,1761229471744,-250.0,0.00029654,2]
[392169492,1761229471768,-250.0,0.00029654,2]
[392169493,1761229471793,-1905.65506391,0.00029654,120]
[392169494,1761229508146,17538.1673839,0.00015,2]
[392169495,1761229508176,1988.31183376,0.00015,2]
[392169496,1761229508198,20000.0,0.00015,2]
[392169497,1761229508223,20000.0,0.00015,2]
[392169498,1761229508251,20000.0,0.00015,2]
[392169499,1761229508282,4000.0,0.00015,2]
[392169500,1761229508306,4000.0,0.00015,2]
[392169501,1761229508329,4000.0,0.00015,2]
[392169502,1761229508353,4000.0,0.00015,2]
[392169503,1761229508377,4000.0,0.00015,2]
[392169504,1761229508402,4000.0,0.00015,2]
[392169505,1761229508427,4000.0,0.00015,2]
[392169506,1761229508454,1000.0,0.00015,2]
[392169507,1761229508478,400.0,0.00015,2]
[392169508,1761229508508,80000.0,0.00015,2]
[392169509,1761229508545,289765.22277572,0.00015,2]
[392169510,1761229513963,-300.80112521,0.000185,2]
[392169511,1761229518198,-463.57410408,0.000185,2]
[392169512,1761229519714,-378.99589592,0.000185,2]
[392169513,1761229522298,-206.74667917,0.000185,2]
[392169514,1761229525716,-194.71609691,0.000185,2]
[392169515,1761229527291,-249.18237144,0.000185,2]
[392169516,1761229530129,-1413.44577397,0.000185,2]
[392169519,1761229544010,-152.64666298,0.0002,2]
[392169520,1761229545484,-230.22874136,0.0002,2]
[392169521,1761229548146,-179.01875004,0.0002,2]
[392169522,1761229550024,-7494.02,0.0002,2]
[392169523,1761229550192,-162.44,0.0002,2]
[392169524,1761229551767,-197.7438503,0.0002,2]
[392169525,1761229553797,-244.08025378,0.0002,2]
[392169526,1761229574203,-190.97865125,0.00019998,2]
[392169527,1761229577996,-176.25,0.00019998,2]
[392169528,1761229581201,-386.64677937,0.00019998,2]
[392169529,1761229583413,-184.75224072,0.00019998,2]
[392169530,1761229584939,-230.42002038,0.00019998,2]
[392169531,1761229586575,-189.78,0.00019998,2]
[392169532,1761229603439,-431.85826948,0.00019998,2]
[392169533,1761229613050,-268.6918043,0.00019998,2]
[392169534,1761229618235,-151.02551007,0.00019998,2]
[392169535,1761229621100,-313.43742108,0.00019998,2]
[392169536,1761229626955,-306.06719304,0.00019998,2]
[392169537,1761229627076,-5335.80648972,0.00019998,2]
[392169538,1761229627097,-300.0,0.00019998,2]
[392169539,1761229627120,-300.0,0.00019998,2]
[392169540,1761229627141,-850.0,0.00019998,2]
[392169541,1761229627160,-250.0,0.00019999,2]
[392169542,1761229627181,-418.0425241,0.00019999,2]
[392169543,1761229627201,-176.43421761,0.00019999,2]
[392169544,1761229627222,-507.50304906,0.00019999,2]
[392169545,1761229627245,-500.0,0.00019999,2]
[392169546,1761229627269,-500.0,0.00019999,2]
[392169547,1761229627291,-500.0,0.00019999,2]
[392169548,1761229627314,-500.0,0.00019999,2]
[392169549,1761229627340,-500.0,0.00019999,2]
[392169550,1761229627363,-500.0,0.00019999,2]
[392169551,1761229627388,-11.7269423,0.00019999,2]
[392169552,1761229631074,-195.01483769,0.00019999,2]
[392169553,1761229632664,-1.09303295,0.00019999,2]
[392169554,1761229632693,-500.0,0.00019999,2]
[392169555,1761229632720,-500.0,0.00019999,2]
[392169556,1761229632747,-500.0,0.00019999,2]
[392169557,1761229632773,-500.0,0.00019999,2]
[392169558,1761229632797,-87273.90696705,0.0002,2]
[392169559,1761229635073,-254.94765122,0.0002,2]
[392169560,1761229644090,-542.53700147,0.0002,2]
[392169561,1761229652013,-184.51579586,0.0002,2]
[392169562,1761229655908,-250.28390309,0.00019999,2]
[392169563,1761229657451,-160.77160387,0.00019999,2]
[392169564,1761229662426,-154.74435891,0.00019999,2]
[392169566,1761229668942,308.59,0.00013699,2]
[392169573,1761229748145,-871.13545177,0.000199,2]
[392169574,1761229748167,-634.20013413,0.00019999,2]
[392169575,1761229748191,-300.0,0.00019999,2]
[392169576,1761229748212,-6704.3910241,0.0002,2]
[392169577,1761229748239,-59767.8823,0.0002,2]
[392169578,1761229753118,-36354.06628,0.0002,2]
[392169579,1761229755112,-40449.33160914,0.0002,2]
[392169580,1761229755133,-35203.57868134,0.0002,2]
[392169581,1761229755153,-521.75689722,0.0002,7]
[392169582,1761229755175,-308.59,0.00020187,2]
[392169583,1761229755203,-1492.79976652,0.0002085,2]
[392169584,1761229755224,-20000.0,0.00021,2]
[392169585,1761229755245,-828.93433233,0.00021,2]
[392169586,1761229755265,-1179.64258117,0.00021,2]
[392169587,1761229755286,-194.71665679,0.00021,2]
[392169588,1761229755309,-19233.12781112,0.000215,2]
[392169589,1761229755329,-219.53564203,0.000215,2]
[392169590,1761229755348,-1680.0,0.00021777,2]
[392169591,1761229755368,-313.0,0.00021777,2]
[392169592,1761229755388,-250.0,0.00021998,2]
[392169593,1761229755408,-1905.65506391,0.00021998,2]
[392169594,1761229755430,-3759.7025141,0.00021998,2]
[392169595,1761229755449,-195.0,0.00021998,2]
[392169596,1761229755469,-173.44630686,0.00021999,2]
[392169597,1761229755488,-160.97,0.00022,2]
[392169598,1761229755512,-1000.0,0.00023198,2]
[392169599,1761229755533,-826.0,0.00023712,2]
[392169600,1761229755555,-250.0,0.0002494,2]
[392169601,1761229755577,-308.59,0.00026676,2]
[392169602,1761229755600,-161.68303364,0.00027,2]
[392169603,1761229755621,-500.0,0.0002752,5]
[392169604,1761229755641,-2131.48903025,0.00028,2]
[392169605,1761229755661,-1008.12308747,0.00028068,5]
[392169606,1761229755682,-594.34493609,0.00029654,120]
[392169607,1761229755703,-195.0,0.00029991,120]
[392169608,1761229755729,-443.7,0.00030328,2]
[392169609,1761229755749,-201.0,0.00030909,2]
[392169610,1761229755769,-1600.0,0.00030909,2]
[392169611,1761229755791,-400.0,0.00030909,2]
[392169612,1761229755811,-158.0,0.00031,120]
[392169613,1761229755832,-175.0,0.00031,120]
[392169614,1761229755854,-443.7,0.00031451,2]
[392169615,1761229755873,-500.0,0.0003158,5]
[392169616,1761229755893,-500.0,0.0003158,2]
[392169617,1761229755914,-500.0,0.0003158,5]
[392169618,1761229755934,-500.0,0.00031675,2]
[392169619,1761229755953,-500.0,0.00031675,5]
[392169620,1761229755973,-500.0,0.00031675,5]
[392169621,1761229755992,-500.4575524,0.00031675,5]
[392169622,1761229756012,-214.08974829,0.00031675,5]
[392169623,1761229756031,-957.57998478,0.00032128,5]
[392169624,1761229756051,-1000.0,0.00032128,2]
[392169625,1761229756070,-500.0,0.00032223,2]
[392169626,1761229756092,-1005.94,0.00032306,14]
[392169627,1761229756113,-443.7,0.00032574,2]
[392169628,1761229756133,-1005.94,0.0003258,14]
[392169629,1761229756152,-250.0,0.00032619,2]
[392169630,1761229756172,-195.0,0.00032619,120]
[392169631,1761229756192,-276.57006513,0.00032619,120]
[392169632,1761229756212,-500.0,0.00032676,2]
[392169633,1761229756234,-1005.94,0.00032854,14]
[392169634,1761229756255,-500.0,0.00032876,2]
[392169635,1761229756275,-1005.94,0.00033128,14]
[392169636,1761229756295,-727.945,0.00033164,34]
[392169637,1761229756314,-308.59,0.00033165,2]
[392169638,1761229756343,-320.0,0.00033282,3]
[392169639,1761229756366,-1005.94,0.00033402,14]
[392169640,1761229756388,-2240.0,0.00033422,3]
[392169641,1761229756410,-151.0,0.00033422,2]
[392169642,1761229756435,-151.0,0.00033422,2]
[392169643,1761229756459,-151.0,0.00033422,2]
[392169644,1761229756481,-151.0,0.00033422,2]
[392169645,1761229756503,-151.0,0.00033422,2]
[392169646,1761229756527,-151.0,0.00033422,2]
[392169647,1761229756549,-151.0,0.00033422,2]
[392169648,1761229756571,-151.0,0.00033422,2]
[392169649,1761229756598,-175.51237419,0.00033422,2]
[392169650,1761229756621,-151.0,0.00033422,2]
[392169651,1761229756643,-151.0,0.00033422,2]
[392169652,1761229756666,-151.0,0.00033422,2]
[392169653,1761229756688,-162.88643894,0.00033422,2]
[392169654,1761229756710,-151.0,0.00033422,2]
[392169655,1761229756735,-151.0,0.00033422,2]
[392169656,1761229756762,-1005.94,0.00033676,14]
[392169657,1761229756784,-443.7,0.00033698,2]
[392169658,1761229756806,-1005.94,0.0003395,14]
[392169659,1761229756832,-1005.95,0.00034224,14]
[392169660,1761229756854,-443.7,0.00034821,2]
[392169661,1761229756873,-500.0,0.00034904,2]
[392169662,1761229756893,-500.0,0.00035233,2]
[392169663,1761229756914,-500.0,0.00035315,2]
[392169664,1761229756941,-443.7,0.00035944,2]
[392169665,1761229756960,-500.0,0.00036027,2]
[392169666,1761229756982,-168.0,0.00036098,2]
[392169667,1761229757004,-191.0,0.00036138,3]
[392169668,1761229757024,-589.7,0.00036316,120]
[392169669,1761229757046,-275.14,0.00036561,120]
[392169670,1761229757069,-168.0,0.00036825,2]
[392169671,1761229757089,-7664.76,0.00036961,2]
[392169672,1761229757110,-443.7,0.00037067,2]
[392169673,1761229757129,-165.72,0.00037312,2]
[392169674,1761229757148,-373.7894,0.00037725,2]
[392169675,1761229757172,-168.0,0.0003784,2]
[392169676,1761229757191,-151.81,0.00037868,2]
[392169677,1761229757213,-168.0,0.00038149,2]
[392169678,1761229757235,-443.7,0.00038191,2]
[392169679,1761229757259,-168.0,0.00038322,2]
[392169680,1761229757284,-168.0,0.00038646,2]
[392169681,1761229757307,-168.0,0.00038666,2]
[392169682,1761229757332,-168.0,0.00038733,2]
[392169683,1761229757352,-3348.0,0.00039,7]
[392169684,1761229757374,-168.0,0.00039025,2]
[392169685,1761229757395,-168.0,0.00039182,2]
[392169686,1761229757418,-150.0,0.00039299,2]
[392169687,1761229757443,-443.7,0.00039314,2]
[392169688,1761229757465,-168.0,0.00039414,2]
[392169689,1761229757652,-257.148635,0.00039452,120]
[392169690,1761229757672,-290.7708,0.00039452,120]
[392169691,1761229757692,-349.260784,0.00039452,120]
[392169692,1761229757714,-168.0,0.00039565,2]
[392169693,1761229757734,-308.59,0.00039654,2]
[392169694,1761229757756,-168.0,0.00039883,2]
[392169695,1761229757781,-6806.067821,0.0004,14]
[392169696,1761229757806,151.0,0.00033422,2]
[392169697,1761229757835,151.0,0.00033422,2]
[392169698,1761229757867,151.0,0.00033422,2]
[392169699,1761229757898,151.0,0.00033422,2]
[392169700,1761229758181,151.0,0.00033422,2]
[392169701,1761229758944,151.0,0.00033422,2]
[392169703,1761229767198,151.0,0.00034608,2]
[392169704,1761229776081,14.55296438,0.000362,2]
[392169706,1761229780634,150.0,0.00033372,2]
[392169707,1761229783579,151.0,0.00034489,2]
[392169708,1761229794924,250.0,0.0002786,2]
[392169709,1761229800213,151.0,0.00034562,2]
[392169710,1761229817444,151.0,0.00033619,2]
[392169711,1761229829672,250.0,0.00017,2]
[392169712,1761229830767,300.0,0.00019,2]
[392169733,1761229831911,-157.38170294,0.000362,2]
[392169736,1761229831921,-271.13356738,0.00037119,2]
[392169741,1761229831971,-243.70714131,0.00037119,2]
[392169742,1761229831980,-168.0,0.00037605,2]
[392169743,1761229831989,-533.88981491,0.00037667,2]
[392169744,1761229831999,-553.64373807,0.00038215,2]
[392169745,1761229832008,-168.0,0.00038586,2]
[392169746,1761229832018,-574.12855637,0.00038763,2]
[392169747,1761229832028,-150.52,0.00039238,2]
[392169748,1761229832038,-595.37131296,0.00039311,2]
[392169749,1761229832047,-617.40005154,0.00039859,2]
[392169750,1761229832057,-300.0,0.00039999,5]
[392169751,1761229832069,-300.0,0.00039999,5]
[392169752,1761229832079,-1200.0,0.00039999,5]
[392169753,1761229832089,-43193.932179,0.0004,14]
[392169754,1761229832098,-738.16615054,0.00040407,2]
[392169755,1761229832110,-443.7,0.00040437,2]
[392169756,1761229832120,-150.0,0.00040488,4]
[392169757,1761229832130,-150.0,0.00040488,4]
[392169758,1761229832139,-150.0,0.00040488,4]
[392169759,1761229832157,-150.0,0.00040488,4]
[392169760,1761229832166,-150.0,0.00040488,4]
[392169761,1761229832176,-150.0,0.00040488,4]
[392169762,1761229832185,-150.0,0.00040488,4]
[392169763,1761229832198,-150.0,0.00040488,4]
[392169764,1761229832207,-150.0,0.00040488,4]
[392169765,1761229832216,-926.93696384,0.0004049,3]
[392169766,1761229832225,-50000.0,0.000405,14]
[392169768,1761229832235,-1390.40544576,0.0004059,3]
[392169770,1761229832245,-25694.79827861,0.000406,14]
[392169772,1761229832257,-1910.0,0.000406,14]
[392169773,1761229832269,-4122.76273755,0.000406,14]
[392169774,1761229832280,-782.57033734,0.000406,14]
[392169775,1761229832292,-301.20850125,0.000406,14]
[392169776,1761229832304,-781.83038869,0.000406,14]
[392169785,1761229838190,-500.0,0.00039999,31]
[392169786,1761229838204,-500.0,0.00039999,31]
[392169787,1761229838214,-416.31909483,0.00039999,31]